Cogmind - Beta 15 @@@ ROGUE MODE // 2025.08.09 @ 19:19:48 Player: SnailSD Result: Destroyed by G-34 Mercenary via exploding Fusion Modulator Performance ------------- Evolutions (0) 0 Regions Visited (1) 200 Robots Destroyed (24) 120 Value Destroyed (482) 482 Prototype IDs (0) 0 Alien Tech Used (0) 0 Bonus (0) 0 TOTAL SCORE: 802 Bonus ------- None Cogmind --------- Core Integrity 0/250 Matter 300/300 Energy 100/100 System Corruption 3% Temperature Cool (36) Movement Treading (240) Ox1 Location -10/Materials Parts ------- > --- POWER (1) -------- (None) > --- PROPULSION (2) --- Light Treads > --- UTILITY (2) ------ Large Storage Unit Seismic Detector > --- WEAPON (2) ------- (None) > --- INVENTORY (15) --- Light Ion Engine Aluminum Leg Wheel Wheel Compact Wheel Small Storage Unit Large Storage Unit Visual Processing Unit Hacking Suite Medium Laser Datajack Peak State ------------ > --- POWER ------------ Light Ion Engine > --- PROPULSION ------- Light Treads Light Treads > --- UTILITY ---------- Small Storage Unit Seismic Detector > --- WEAPON ----------- Assault Rifle Assault Rifle > --- INVENTORY -------- Aluminum Leg Wheel Wheel Compact Wheel Small Storage Unit Hacking Suite Medium Laser Datajack [Rating: 8] Favorites ----------- Power Ion Engine Engine Ion Engine Propulsion Light Treads Treads Light Treads Utility Small Storage Unit Device Seismic Detector Storage Small Storage Unit Weapon Assault Rifle Energy Gun Medium Laser Ballistic Gun Assault Rifle Build | -11 -10 ------- Run | Yrd Mat Slots Evolved . | . . Power . | . . Propulsion . | . . Utility . | . . Weapon . | . . Parts Attached 13 | 7 6 Power 2 | 1 1 Engine 2 | 1 1 Core . | . . Reactor . | . . Propulsion 3 | 2 1 Treads 3 | 2 1 Leg . | . . Wheel . | . . Hover . | . . Flight . | . . Utility 4 | 2 2 Device 2 | 1 1 Storage 2 | 1 1 Processor . | . . Hackware . | . . Protection . | . . Artifact . | . . Weapon 4 | 2 2 Energy Gun 2 | 2 . Energy Cannon . | . . Ballistic Gun 2 | . 2 Ballistic Cannon . | . . Launcher . | . . Special Weapon . | . . Impact Weapon . | . . Slashing Weapon . | . . Piercing Weapon . | . . Special Melee Weapon . | . . Unidentified Prototypes . | . . Parts Lost 7 | . 7 Power 2 | . 2 Propulsion 2 | . 2 Utility 1 | . 1 Weapon 2 | . 2 Highest Loss Streak 4 | . 4 To Critical Strikes . | . . Average Backups 7 | 4 7 Power . | . . Propulsion 4 | 2 4 Utility 1 | . 1 Weapon . | . 1 Tool/Special . | . . Unused Backups 10 | . 10 Power . | . . Propulsion 5 | . 5 Utility 3 | . 3 Weapon 1 | . 1 Tool/Special 1 | . 1 Average Slot Usage (%) 92 | . 92 Engine 13 | . 13 Treads 28 | . 28 Device 8 | . 8 Storage 14 | . 14 Energy Gun 1 | . 1 Ballistic Gun 26 | . 26 Peak Build Rating 8 | 7 8 Average Rating 6 | 5 6 On Entrance 3 | . 7 Naked Turns . | . . Heaviest Build 28 | 15 28 Greatest Support 40 | 40 40 Greatest Overweight (x) 3 | 3 . Average Overweight (x) . | . . Largest Inventory Capacity 15 | 8 15 Average Capacity 8 | 7 8 Most Carried 11 | 8 11 Average Carried 7 | 5 7 Final Capacity 15 | 8 15 Final Carried 11 | 8 11 Class Distribution -------------------- 100% | Mutant Dominant Class ---------------- Mutant | -10/Materials Resources | -11 -10 ----------- Run | Yrd Mat Matter Collected 676 | 270 406 Remotely . | . . Salvage Created 688 | 90 598 Parts 55 | 8 47 Haulers Intercepted 1 | . 1 Recyclers Shooed 1 | . 1 Parts Field Recycled . | . . Retrieved Matter . | . . Parts Self-Destructed . | . . Prevented . | . . Kills | -11 -10 ------- Run | Yrd Mat Combat Hostiles Destroyed 16 | . 16 Guns 16 | . 16 Classes Destroyed 8 | 2 6 Worker 2 | . 2 Tunneler 2 | 2 . Hauler 1 | . 1 Recycler 1 | 1 . Operator 1 | . 1 Watcher 1 | . 1 Swarmer 6 | . 6 Grunt 10 | . 10 Best Kill Streak 3 | 2 3 Combat Bots Only 3 | . 3 Max Kills in Single Turn 1 | 1 1 Gunslinging . | . . Exploded . | . . Melee . | . . Uniques/NPCs Destroyed . | . . Combat | -11 -10 -------- Run | Yrd Mat Hostile Shots Fired 102 | . 102 Missed 34 | . 34 Hits 68 | . 68 Projectile 68 | . 68 AOE 3 | . 3 Critical Strikes 1 | . 1 Damage Taken 975 | . 975 Core 265 | . 265 Absorbed by Shields . | . . Core Remaining (%) 100 | 100 . Volleys Fired 64 | 6 58 Largest 2 | 2 2 Hottest 100 | 100 40 Shots Fired 128 | 12 116 Gun 128 | 12 116 Cannon . | . . Launcher . | . . Special . | . . Kinetic 116 | . 116 Thermal 12 | 12 . Explosive . | . . Electromagnetic . | . . Robot Hit Streak 14 | 2 14 Robot Miss Streak 5 | 1 5 Penetration Max . | . . Secondary Targets 3 | . 3 Max Gunslinging Chain 1 | . 1 Shots Hit Robots 73 | 6 67 Core Hits 39 | 4 35 Critical Kills 1 | . 1 Critical Parts Destroyed . | . . Critical Strikes 2 | 1 1 Burn 1 | 1 . Destroy 1 | . 1 Melee Attacks . | . . Impact . | . . Slashing . | . . Piercing . | . . Sneak Attacks . | . . Combat Hostiles . | . . Follow-up Attacks . | . . Damage Inflicted 955 | 74 881 Guns 955 | 74 881 Cannons . | . . Explosions . | . . Melee . | . . Ramming . | . . Kinetic 881 | . 881 Thermal 74 | 74 . Explosive . | . . Electromagnetic . | . . Impact . | . . Slashing . | . . Piercing . | . . Highest Corruption 3 | . 3 Average Corruption 2 | . 2 Corruption Purged . | . . Corruption Blocked . | . . Effects 14 | . 14 Message Errors 5 | . 5 Matter Fused 3 | . 3 Energy Discharges 2 | . 2 Parts Fused 1 | . 1 Data Loss (minor) 3 | . 3 Overload Shots . | . . Overflow Damage . | . . Projectiles . | . . Explosions . | . . Melee . | . . Knockbacks . | . . Impact . | . . Kinetic . | . . Secondary . | . . Self-Inflicted Damage . | . . Shots . | . . Rammed . | . . Targets Rammed . | . . Kicked . | . . Crushed . | . . Highest Temperature 117 | 117 20 Average Temperature 29 | 46 4 Received Heat Transfer 360 | . 360 Siege Activations . | . . Martial Activations . | . . Shielding Activations . | . . Robots Disrupted . | . . Combat Hostiles . | . . Robots Corrupted . | . . Combat Hostiles . | . . Parts Fried . | . . Impact Corruptions . | . . Robots Melted . | . . Combat Hostiles . | . . Parts Melted 1 | 1 . Heat Transferred 296 | 296 . Parts Sabotaged . | . . Parts Stolen . | . . Parts Stripped . | . . Power Chain Reactions . | . . Alert | -11 -10 ------- Run | Yrd Mat Maximum Alert Level . | . . Low Security (%) 100 | 100 100 Level 1 . | . . Level 2 . | . . Level 3 . | . . Level 4 . | . . Level 5 . | . . High Security . | . . Max Security . | . . Peak Influence 126 | 5 126 Initial . | . . Average 42 | . 49 Influence Increases 445 | 15 430 Destroy 0b10 Robot/C 320 | . 320 Destroy 0b10 Robot/NC 40 | 15 25 Destroy Leader 74 | . 74 Successful Hack 10 | . 10 Destroy Structure 1 | . 1 Influence Decreases 445 | 15 430 Time Decay 379 | 15 364 Lost Part 66 | . 66 Squads Dispatched 4 | . 4 Investigation 3 | . 3 Extermination . | . . Reinforcement 1 | . 1 Assault . | . . Garrison . | . . Intercept . | . . Searches Triggered . | . . Construction Impeded . | . . Haulers Reinforced . | . . Active Scanning Responses . | . . Cargo Convoy Interrupts . | . . Stealth | -11 -10 --------- Run | Yrd Mat Distress Signals 2 | . 2 Communications Jammed . | . . Distress Signals . | . . Times Spotted 30 | . 30 Peak Tracking Total 6 | . 6 Tactical Retreats . | . . Traps | -11 -10 ------- Run | Yrd Mat Traps Triggered 1 | . 1 Indirectly . | . . Trap Hack Attempts . | . . Triggered . | . . Disarmed . | . . Reprogrammed . | . . Reused . | . . Traps Extracted . | . . Installed . | . . Triggered . | . . Machines | -11 -10 ---------- Run | Yrd Mat Machines Disabled 1 | . 1 Max in Single Turn 1 | . 1 Machines Repaired . | . . Machines Dismantled . | . . Machines Sabotaged . | . . Overloaded Fab Kills . | . . Hacking | -11 -10 --------- Run | Yrd Mat Machines Accessed 4 | . 4 Terminals 4 | . 4 Fabricators . | . . Repair Stations . | . . Recycling Units . | . . Scanalyzers . | . . Garrison Access . | . . Total Hacks 14 | . 14 Successful 3 | . 3 Failed 11 | . 11 Catastrophic 3 | . 3 Database Lockouts . | . . Manual 12 | . 12 Terminals 14 | . 14 Fabricators . | . . Repair Stations . | . . Recycling Units . | . . Scanalyzers . | . . Garrison Access . | . . Terminal Hacks 2 | . 2 Robot Analysis 2 | . 2 Fabricator Hacks . | . . Repair Station Hacks . | . . Recycling Unit Hacks . | . . Scanalyzer . | . . Garrison Access Hacks . | . . Unauthorized Hacks 1 | . 1 Terminals 1 | . 1 Operators 1 | . 1 Fabricators . | . . Repair Stations . | . . Recycling Units . | . . Scanalyzers . | . . Garrison Access . | . . Data Cores Recovered . | . . Used . | . . Hacking Detections 4 | . 4 Full Trace Events 3 | . 3 Feedback Events 1 | . 1 Corruption 1 | . 1 Feedback Blocked . | . . Robot Schematics Acquired . | . . Robots Built . | . . Authchips . | . . Time . | . . Total Robot Build Rating . | . . Part Schematics Acquired . | . . Parts Built . | . . Authchips . | . . Time . | . . Total Part Build Rating . | . . Parts Repaired . | . . Time . | . . Parts Recycled . | . . Recycled Matter . | . . Retrieved Matter . | . . Retrieved Components . | . . Parts Scanalyzed . | . . Part Schematics Acquired . | . . Parts Damaged . | . . Bothacking | -11 -10 ------------ Run | Yrd Mat Used RIF Installer . | . . Robots Hacked . | . . Non-combat . | . . Combat . | . . Robot Hacks Applied . | . . Relay Couplers Released . | . . Fabnet Peak Effective % . | . . Robots Rewired . | . . Allies Hacked . | . . Hacks Repelled . | . . Allies | -11 -10 -------- Run | Yrd Mat Total Allies . | . . Largest Group . | . . Highest-Rated Group . | . . Highest-Rated Ally . | . . Total Orders . | . . Ally Attacks . | . . Total Damage . | . . Kills . | . . Allies Corrupted . | . . Allies Melted . | . . Intel | -11 -10 ------- Run | Yrd Mat Active Infowar (turns) 619 | 49 570 Seismic 619 | 49 570 Robot Analysis Total 2 | . 2 Derelict Logs Recovered . | . . Drone Launches . | . . Drone Recoveries . | . . Exploration | -11 -10 ------------- Run | Yrd Mat Turns Passed 1159 | 175 984 Spaces Moved 573 | 89 484 Core 11 | 11 . Treads 562 | 78 484 Legs . | . . Wheels . | . . Hover . | . . Flight . | . . Fastest Speed 50 | 50 160 Average Speed 159 | 157 160 Slowest Speed 200 | 200 160 Overloaded Moves . | . . Propulsion Burnouts . | . . Robots Hopped . | . . Potential Cave-ins . | . . Cave-ins Triggered . | . . Exploration Rate (%) 40 | 6 75 Regions Visited 1 Branch Regions . Pre-discovered Areas . | . . Known Exits Taken . | . . Unknown Exits Taken 1 | 1 . Scrap Searched . | . . Spaces Dug . | . . Terrain Destroyed . | . . Melee . | . . Projectile . | . . AOE . | . . Terrain Rammed . | . . Walls Destroyed . | . . Machines Disabled . | . . Actions | -11 -10 --------- Run | Yrd Mat Total 687 | 109 578 Wait 18 | . 18 Move 572 | 88 484 Hop . | . . Pick Up 15 | 8 7 Fast Attach 10 | 7 3 Attach 2 | . 2 Detach . | . . Swap 1 | . 1 Drop 5 | . 5 Fire 64 | 6 58 Melee . | . . Ram . | . . Kick . | . . Crush . | . . Escape Stasis . | . . Rewire . | . . Trap . | . . Miscellaneous . | . . Route ------- -11/Scrapyard -10/Materials (discovered 4 exits: [*Mat x3] / [*Min]) History --------- Turn | Location | Event 17 | -11/Scrapyard | Discovered new exit (range 16) 176 | -11/Scrapyard | Entered Materials 306 | -10/Materials | Build established: Mutant 409 | -10/Materials | Discovered new exit (range 15) 629 | -10/Materials | Discovered new exit (range 6) 737 | -10/Materials | Discovered new exit (range 9) 1101 | -10/Materials | Core integrity fell below 50% 1126 | -10/Materials | Discovered new exit (range 11) 1160 | -10/Materials | Destroyed by G-34 Mercenary via exploding Fusion Modulator Last Messages --------------- 01101_ G-34 Mercenary destroyed. 01103_ K-01 Serf collects debris. 01120_ Acquired 31 matter. 01121_ K-01 Serf collects debris. 01122_ Acquired 3 matter. 01124_ K-01 Serf collects debris. 01126_ EXIT=FOUND 01130_ K-01 Serf collects debris. 01138_ Acquired Lgt. Ion Engine. 01142_ Acquired Visual Processing Unit. 01157_ K-01 Serf cleans the Fusion Modulator. 01160_ Fusion Modulator explodes. 01160_ Assault Rifle destroyed. 01160_ Lgt. Ion Engine destroyed. 01160_ Fusion Modulator explodes. 01160_ K-01 Serf destroyed. 01160_ Fusion Modulator explodes. 01160_ Lgt. Treads destroyed. 01160_ Assault Rifle destroyed. 01160_ Fusion Modulator explodes. Map ----- +----------------------------------------------------+ | ?####???????# """ """ #???# #??????????? | | ????????????# #???# #?????###+?? | | ????????????###########???# #???? ?? | | ??????????????????????????# #???""" #? | | ??????????????????####????# #??"""" #? | | ??????????????????#T"#????# #? """" [#? | | ??????????######### "#######+##+####+###? #? | | ?????###+## # """" #? | | ?????# / """" #? | | ###### #???"" #? | | "T" #????? #? | | ^ ########+## | | "" | | Y" ######### !!! | | "" #"""""""# g !! % % | | #" |"| "# g !! ############ # | | #" # ############ # | | !! !##[[ # # | | < %+[[[[ "T" + # | | ##*[[[ """ # # | | # ; ##! # # | | #######+#### ####;;;;; ############ # | | #??????? ?# !%% # | | ????????? ?# * # | | ???????????# !! """ """ # | | ???????????######## @ !!! """ """ + | | ??????????????????# !!! """ """ # | | ?????????????????# # | | ???######?########== # | | #??# ?# """ """ """ # | | #??# """ # """ """ """ # | | #??# """ # """ """ """ # | | #??# """ + # | | #??# # t # | | #??# | # """ """ """ """ """ # | | ############ """ """ """ """ """ # | | ###T####### """ """ """ """ """ # | | = k # | | [ ! # | | *==%= ##### # | | ###+### #####+##???# # | | #? ??# #?? ???# # | | #? ??# # ?# # | | #? ??? # ## + | | ## ??? # ## # | | + ???? ################## =## | | ######### ???? < #????# #= # | | ### #??????????????? #????# % +=[+= | | ??# #???????????????####????# """ """ #* # | | ??#! !#???????????????????????# """ """ # *#? | +----------------------------------------------------+ Best States ------------- Heat Dissipation 25 Energy Generation 10 Energy Capacity 250 Matter Stores 300 Matter Capacity 300 Sight Range 16 Terrain Scan Density 10 Evasion (%) 40 Recoil Reduction 2 Item Schematics ----------------- None Robot Schematics ------------------ None Fabricated ------------ Nothing Repaired ---------- Nothing Alien Tech Used ----------------- None Achievements -------------- None Challenges ------------ None Game ------ Seed LongswordAntigravRegenerator Manual? 0 Play Time 00:12:07 Cumulative 25.7 hours Start 2025.08.09 @ 19:10:07 End 2025.08.09 @ 19:19:48 Sessions 1 Manual Loads 0 Difficulty Rogue Special Mode None Game No. 41 Rogue 41 Adventurer 0 Explorer 0 Win Type - Total 0 Types 0/0/0/0/0/0/0/0/0/0 Lore% 31 Gallery% 28 Achievement% 27 Wizard Run 0 Options --------- Layout 1 ASCII 0 Keyboard 0 Movement Numpad Keybinds 0 Fullscreen 1 Font 24/Smallcaps Map View 50x35 Zoom Use 0% Tactical HUD 1 Map Filters NONE Filters NONE Steam 1 RUN: 3b85f2f1-49db-432f-8d31-6bf76509b290